fUSD/lending_fUSD_20250826
["ID","MTS","AMOUNT","RATE_DAILY","PERIOD"]
[381429738,1756193479970,-160.0,0.00027,10]
[381429739,1756193479979,-15373.23157002,0.0002701,2]
[381429740,1756193479989,-8660.99712336,0.0002701,2]
[381429741,1756193480001,-252.28347543,0.0002701,2]
[381429742,1756193481908,-268.88146458,0.000139,2]
[381429743,1756193481918,-20.46977979,0.000164,2]
[381429744,1756193482031,-242.64972021,0.000164,2]
[381429745,1756193482042,-151.425968,0.000164,2]
[381429746,1756193482052,-263.1195,0.000164,2]
[381429747,1756193482062,-2000.0,0.000175,2]
[381429748,1756193482073,-228.894384,0.00018,2]
[381429749,1756193482082,-35.94758446,0.00018,2]
[381429750,1756193482095,-227.17191554,0.00018,2]
[381429751,1756193482105,-263.1195,0.00018,2]
[381429752,1756193482115,-228.894384,0.0002192,7]
[381429753,1756193482125,-2088.40726431,0.0002192,4]
[381429754,1756193484423,200.0,0.000113,4]
[381429755,1756193485591,500.0,0.000114,4]
[381429756,1756193487100,700.0,0.000115,4]
[381429757,1756193489096,1000.0,0.000116,4]
[381429758,1756193490124,1300.0,0.000117,4]
[381429765,1756193491479,200.0,0.000118,4]
[381429766,1756193492813,200.0,0.000119,4]
[381429776,1756193704812,10000.0,0.00028767,120]
[381429777,1756193786649,10000.0,0.00028767,120]
[381429783,1756193900724,10000.0,0.00028767,120]
[381429791,1756194043713,179.7,0.00026426,120]
[381429792,1756194057639,154.0,0.00028767,120]
[381429793,1756194057886,152.0,0.00028767,120]
[381429794,1756194073004,152.0,0.00028767,120]
[381429795,1756194088146,152.0,0.00028767,120]
[381429796,1756194099083,152.0,0.00028767,120]
[381429797,1756194128665,13400.9114647,0.00028767,120]
[381429798,1756194130786,152.0,0.00028767,120]
[381429810,1756194320011,152.0,0.00028767,120]
[381429811,1756194320434,152.0,0.00028767,120]
[381429812,1756194320859,152.0,0.00028767,120]
[381429813,1756194321188,152.0,0.00028767,120]
[381429814,1756194321577,152.0,0.00028767,120]
[381429816,1756194328277,152.0,0.00028767,120]
[381429817,1756194328364,152.0,0.00028767,120]
[381429818,1756194328697,152.0,0.00028767,120]
[381429819,1756194330117,152.0,0.00028767,120]
[381429820,1756194330238,152.0,0.00028767,120]
[381429821,1756194330500,152.0,0.00028767,120]
[381429822,1756194330853,152.0,0.00028767,120]
[381429823,1756194330960,152.0,0.00028767,120]
[381429824,1756194331279,152.0,0.00028767,120]
[381429825,1756194338941,152.0,0.00028767,120]
[381429826,1756194358752,152.0,0.00028767,120]
[381430264,1756194628933,152.0,0.00028767,120]
[381430270,1756194629182,152.0,0.00028767,120]
[381430334,1756194631642,-151.0,0.0001199,2]
[381430336,1756194631652,-152.0,0.0001259,2]
[381430337,1756194631661,-153.0,0.00013189,2]
[381430338,1756194631671,-500.0,0.00013699,2]
[381430339,1756194631681,-43.71745748,0.00013699,2]
[381430341,1756194631692,-404.99254252,0.00013699,2]
[381430342,1756194631701,-2829.62952987,0.00013699,2]
[381430343,1756194631710,-154.0,0.00013789,2]
[381430344,1756194631719,-155.0,0.00014388,2]
[381430346,1756194631728,-156.0,0.00014988,2]
[381430347,1756194631738,-250.0,0.00015,2]
[381430348,1756194631747,-150.99,0.00015011,2]
[381430349,1756194631756,-21.64122761,0.00015011,2]
[381430351,1756194631779,-1000.0,0.00015011,2]
[381430352,1756194631789,-3747.14430452,0.00015011,2]
[381430353,1756194631800,-5305.34627651,0.00015011,2]
[381430355,1756194631812,-7702.90039615,0.00015011,2]
[381430356,1756194631824,-370.63653507,0.00015011,2]
[381430361,1756194631997,-1770.0,0.00015011,2]
[381430362,1756194632009,-449.68126014,0.00015011,2]
[381430364,1756194632019,-150.99,0.00015011,2]
[381430365,1756194632028,-858.74434512,0.00015011,2]
[381430372,1756194632153,-323.02140645,0.00015011,2]
[381430373,1756194632171,-483.07287045,0.00015011,2]
[381430375,1756194632182,-1537.47542561,0.00015011,2]
[381430376,1756194632194,-2535.37588637,0.00015011,2]
[381430501,1756194637633,-4262.300066,0.00015011,2]
[381430503,1756194637643,-4196.27603284,0.00015011,2]
[381430506,1756194637737,-260.0,0.00015011,2]
[381430509,1756194637994,-1268.72396716,0.00015011,2]
[381430510,1756194638003,-106.00693732,0.00015011,2]
[381430511,1756194638015,-1519.1193888,0.00015011,2]
[381430556,1756194640042,-3791.78367388,0.00015011,2]
[381430558,1756194640052,-150.0,0.00015434,2]
[381430559,1756194640063,-274.0,0.00015492,2]
[381430560,1756194640074,-675.15928909,0.00015531,2]
[381430561,1756194640084,-151.0,0.00015578,2]
[381430562,1756194640095,-500.0,0.00015578,2]
[381430564,1756194640107,-200.0,0.00015578,2]
[381430565,1756194640116,-151.0,0.00015578,2]
[381430566,1756194640126,-151.0,0.00015578,2]
[381430567,1756194640136,-151.0,0.00015578,2]
[381430568,1756194640147,-151.0,0.00015578,2]
[381430570,1756194640156,-151.0,0.00015578,2]
[381430571,1756194640167,-500.0,0.00015578,2]
[381430572,1756194640178,-500.0,0.00015578,2]
[381430573,1756194640188,-500.0,0.00015578,2]
[381430574,1756194640198,-500.0,0.00015578,2]
[381430576,1756194640208,-151.0,0.00015578,2]
[381430577,1756194640218,-500.0,0.00015578,2]
[381430578,1756194640228,-462.29087217,0.00015578,2]
[381430579,1756194640238,-151.0,0.00015578,2]
[381430580,1756194640248,-151.0,0.00015578,2]
[381430582,1756194640258,-151.0,0.00015578,2]
[381430583,1756194640268,-151.0,0.00015578,2]
[381430584,1756194640278,-151.0,0.00015578,2]
[381430585,1756194640288,-151.0,0.00015578,2]
[381430587,1756194640298,-548.0475,0.00015578,2]
[381430588,1756194640308,-157.0,0.00015587,2]
[381430589,1756194640318,-302.01262419,0.00015632,2]
[381430590,1756194640327,-500.0,0.00015633,2]
[381430591,1756194640339,-500.0,0.00015688,2]
[381430593,1756194640348,-250.83254163,0.00015843,2]
[381430594,1756194640358,-9999.99,0.00016116,2]
[381430595,1756194640368,-500.0,0.0001615,2]
[381430596,1756194640377,-158.0,0.00016187,2]
[381430597,1756194640387,-450.0,0.00016419,2]
[381430599,1756194640397,-500.0,0.00016438,2]
[381430600,1756194640407,-600.0,0.00016438,2]
[381430601,1756194640416,-600.0,0.00016438,2]
[381430602,1756194640426,-600.0,0.00016438,2]
[381430603,1756194640436,-600.0,0.00016438,2]
[381430605,1756194640446,-600.0,0.00016438,2]
[381430606,1756194640456,-600.0,0.00016438,2]
[381430607,1756194640466,-600.0,0.00016438,2]
[381430608,1756194640475,-600.0,0.00016438,2]
[381430610,1756194640485,-600.0,0.00016438,2]
[381430611,1756194640495,-600.0,0.00016438,2]
[381430612,1756194640506,-600.0,0.00016438,2]
[381430613,1756194640515,-600.0,0.00016438,2]
[381430614,1756194640525,-405.0,0.00016688,2]
[381430616,1756194640535,-159.0,0.00016786,2]
[381430617,1756194640545,-364.5,0.00016957,2]
[381430618,1756194640555,-1000.0,0.00016971,2]
[381430619,1756194640565,-500.0,0.00016986,2]
[381430620,1756194640575,-300.0,0.00017,2]
[381430622,1756194640585,-2241.0,0.00017015,2]
[381430623,1756194640598,-202.13,0.00017038,2]
[381430624,1756194640608,-1486.92,0.00017067,2]
[381430625,1756194640618,-500.0,0.00017078,2]
[381430626,1756194640628,-250.0,0.00017079,2]
[381430628,1756194640640,-736.17,0.00017095,2]
[381430629,1756194640650,-200.0,0.00017103,2]
[381430630,1756194640660,-284.37,0.00017216,2]
[381430631,1756194640670,-328.05,0.00017226,2]
[381430633,1756194640679,-500.0,0.00017256,2]
[381430634,1756194640689,-666.0,0.0001727,3]
[381430635,1756194640698,-151.0,0.00017299,2]
[381430636,1756194640708,-151.0,0.00017303,2]
[381430637,1756194640718,-151.0,0.00017306,2]
[381430639,1756194640728,-151.0,0.00017312,2]
[381430640,1756194640738,-253.21855818,0.00017386,2]
[381430641,1756194640747,-295.245,0.00017496,2]
[381430642,1756194640757,-2000.0,0.000175,2]
[381430643,1756194640767,-2000.0,0.000175,2]
[381430645,1756194640776,-500.0,0.00017534,2]
[381430646,1756194640786,-621.26400369,0.00017592,2]
[381430647,1756194640795,-267.46074303,0.00017592,2]
[381430648,1756194640807,-695.39793187,0.00017592,2]
[381430650,1756194640817,-322.6107,0.00017592,2]
[381430651,1756194640827,-433.23864431,0.00017592,2]
[381430652,1756194640836,-179.7,0.00017617,2]
[381430653,1756194640849,-1000.0,0.00017626,2]
[381430654,1756194640859,-157.64,0.00017667,2]
[381430656,1756194640868,-157.64,0.00017728,2]
[381430657,1756194640878,-265.7205,0.00017765,2]
[381430658,1756194640888,-157.64,0.0001779,2]
[381430659,1756194640898,-377.62947116,0.00017804,2]
[381430661,1756194640914,-160.0,0.00017828,7]
[381430662,1756194640924,-500.0,0.00017883,2]
[381430663,1756194640934,-5762.6947434,0.00018,2]
[381430664,1756194640947,-239.14845,0.00018034,2]
[381430666,1756194640957,-500.0,0.00018082,2]
[381430667,1756194640967,-555.69,0.00018103,2]
[381430668,1756194640976,-1256.0,0.00018128,2]
[381430669,1756194640988,-3374.0,0.00018128,2]
[381430670,1756194640998,-2031.0,0.00018128,2]
[381430672,1756194641007,-926.0,0.00018128,2]
[381430673,1756194641018,-1658.0,0.00018128,2]
[381430674,1756194641027,-1298.0,0.00018128,2]
[381430675,1756194641037,-571.777,0.00018128,2]
[381430676,1756194641047,-599.0,0.00018128,2]
[381430678,1756194641058,-1173.0,0.00018128,2]
[381430679,1756194641068,-895.0,0.00018128,2]
[381430680,1756194641078,-258.763,0.00018128,2]
[381430681,1756194641088,-6146.0,0.00018128,2]
[381430683,1756194641098,-4155.0,0.00018128,2]
[381430684,1756194641108,-718.0,0.00018128,2]
[381430685,1756194641117,-21104.0,0.00018128,2]
[381430686,1756194641127,-1500.0,0.00018174,2]
[381430687,1756194641137,-458.7662338,0.00018189,2]
[381430689,1756194641147,-160.0,0.00018189,2]
[381430690,1756194641156,-160.0,0.00018189,2]
[381430691,1756194641166,-212.18043798,0.00018189,2]
[381430692,1756194641175,-844.63891918,0.00018191,2]
[381430693,1756194641186,-215.233605,0.00018303,2]
[381430695,1756194641196,-207.4,0.00018317,2]
[381430696,1756194641205,-244.22038366,0.00018431,2]
[381430697,1756194641215,-193.7102445,0.00018572,2]
[381430698,1756194641224,-500.0,0.0001863,2]
[381430700,1756194641234,-56.72068068,0.00018722,2]
[381430701,1756194641248,-1943.27931932,0.00018722,2]
[381430702,1756194641257,-200.0,0.00018745,2]
[381430703,1756194641267,-157.36915043,0.00018881,9]
[381430705,1756194641277,-277.35679052,0.00018961,2]
[381430706,1756194641287,-334.5472959,0.00018961,2]
[381430707,1756194641297,-610.0,0.00018985,2]
[381430708,1756194641307,-555.69,0.00019009,2]
[381430709,1756194641316,-8890.68,0.00019133,2]
[381430711,1756194641326,-500.0,0.00019178,2]
[381430712,1756194641336,-5000.0,0.00019178,2]
[381430713,1756194641351,-2500.0,0.0001927,2]
[381430714,1756194641361,-300.0,0.00019701,2]
[381430716,1756194641370,-582.39901521,0.00019818,2]
[381430717,1756194641379,-179.7,0.00019819,2]
[381430718,1756194641388,-6.85214272,0.00019863,2]
[381430719,1756194641400,-331.08785728,0.00019863,2]
[381430721,1756194641410,-555.69,0.00019914,2]
[381430722,1756194641419,-150.0,0.0002,2]
[381430723,1756194641428,-308.95,0.0002,2]
[381430724,1756194641438,-448.71,0.00020187,2]
[381430725,1756194641447,-287.61899177,0.0002033,2]
[381430727,1756194641457,-346.92554585,0.0002033,2]
[381430728,1756194641468,-721.12765535,0.00020331,2]
[381430729,1756194641478,-186.14,0.00020548,2]
[381430730,1756194641487,-555.69,0.00020819,2]
[381430732,1756194641497,-946.01872531,0.00021028,2]
[381430733,1756194641507,-300.0,0.00021071,2]
[381430734,1756194641516,-1256.0,0.00021128,2]
[381430735,1756194641525,-3374.0,0.00021128,2]
[381430736,1756194641534,-2031.0,0.00021128,2]
[381430738,1756194641544,-926.0,0.00021128,2]
[381430739,1756194641553,-1658.0,0.00021128,2]
[381430740,1756194641563,-1298.0,0.00021128,2]
[381430741,1756194641572,-566.0,0.00021128,2]
[381430743,1756194641581,-599.0,0.00021128,2]
[381430744,1756194641592,-1173.0,0.00021128,2]
[381430745,1756194641602,-895.0,0.00021128,2]
[381430746,1756194641611,-6146.0,0.00021128,2]
[381430747,1756194641620,-4155.0,0.00021128,2]
[381430749,1756194641629,-718.0,0.00021128,2]
[381430750,1756194641639,-21104.0,0.00021128,2]
[381430751,1756194641648,-2500.0,0.00021516,2]
[381430752,1756194641657,-600.0,0.00021616,2]
[381430754,1756194641666,-298.26089446,0.00021699,2]
[381430755,1756194641676,-359.76179104,0.00021699,2]
[381430756,1756194641685,-500.0,0.00021699,2]
[381430757,1756194641696,-500.0,0.00021699,2]
[381430758,1756194641705,-500.0,0.00021699,2]
[381430760,1756194641715,-579.0,0.00021699,2]
[381430761,1756194641724,-555.69,0.00021724,2]
[381430769,1756194642071,-603.20364015,0.00021822,2]
[381430771,1756194642082,-2553.53,0.000219,2]
[381430772,1756194642095,-946.01872522,0.00021903,2]
[381430773,1756194642104,-5000.0,0.00021918,2]
[381430774,1756194642115,-765.0,0.00021922,3]
[381430776,1756194642124,-261.61315789,0.00021999,2]
[381430777,1756194642134,-500.0,0.00021999,2]
[381430778,1756194642143,-900.0,0.00022,8]
[381430779,1756194642153,-900.0,0.00022,8]
[381430780,1756194642163,-900.0,0.00022,8]
[381430782,1756194642172,-900.0,0.00022,8]
[381430783,1756194642182,-900.0,0.00022,8]
[381430784,1756194642191,-900.0,0.00022,8]
[381430785,1756194642201,-900.0,0.00022,8]
[381430787,1756194642211,-900.0,0.00022,8]
[381430788,1756194642220,-42100.1687564,0.00022,2]
[381430790,1756194642297,-500.0,0.00021999,2]
[381430792,1756194642307,-500.0,0.00021999,2]
[381430793,1756194642317,-500.0,0.00021999,2]
[381430794,1756194642327,-500.0,0.00021999,2]
[381430795,1756194642336,-500.0,0.00021999,2]
[381430797,1756194642352,-500.0,0.00021999,2]
[381430798,1756194642363,-420.42709264,0.00021999,2]
[381430799,1756194642372,-11250.61097699,0.00022,2]
[381430802,1756194642462,-500.0,0.00021999,2]
[381430803,1756194642471,-500.0,0.00021999,2]
[381430805,1756194642481,-500.0,0.00021999,2]
[381430807,1756194642490,-500.0,0.00021999,2]
[381430809,1756194642500,-500.0,0.00021999,2]
[381430811,1756194642510,-2767.87190517,0.00022,2]
[381430813,1756194642519,-213.59,0.00022,2]
[381430816,1756194642528,-179.7,0.00022022,2]
[381430819,1756194642537,-2273.33,0.000221,2]
[381430821,1756194642546,-600.0,0.00022164,2]
[381430823,1756194642556,-817.00863557,0.00022252,3]
[381430827,1756194642565,-900.0,0.00022277,8]
[381430829,1756194642575,-900.0,0.00022277,8]
[381430831,1756194642584,-900.0,0.00022277,8]
[381430833,1756194642597,-900.0,0.00022277,8]
[381430835,1756194642606,-900.0,0.00022277,8]
[381430838,1756194642617,-900.0,0.00022277,8]
[381430840,1756194642627,-900.0,0.00022277,8]
[381430842,1756194642637,-340.31187876,0.00022277,8]
[381430844,1756194642647,-2418.0,0.00022304,2]
[381430847,1756194642657,-5800.0,0.00022423,2]
[381430849,1756194642671,-5800.0,0.00022431,2]
[381430850,1756194642680,-5800.0,0.0002244,2]
[381430851,1756194642690,-5800.0,0.00022448,2]
[381430853,1756194642700,-5800.0,0.00022457,2]
[381430854,1756194642709,-5800.0,0.00022465,2]
[381430855,1756194642718,-337.94,0.00022603,2]
[381430856,1756194642728,-500.0,0.00022687,2]
[381430857,1756194642737,-600.0,0.00022712,2]
[381430859,1756194642746,-2142.51,0.00022729,2]
[381430860,1756194642756,-946.01872522,0.00022777,2]
[381430862,1756194642765,-500.0,0.00022879,2]
[381430863,1756194642775,-153.0,0.00022906,2]
[381430865,1756194642784,-1385.0,0.00023,3]
[381430866,1756194642794,-233.22,0.00023,5]
[381430867,1756194642803,-309.29654756,0.00023068,2]
[381430868,1756194642813,-373.07297731,0.00023068,2]
[381430869,1756194642822,-747.8093786,0.0002307,2]
[381430871,1756194642831,-1500.0,0.0002317,2]
[381430872,1756194642843,-169.22158609,0.00023188,2]
[381430873,1756194642853,-600.0,0.0002326,2]
[381430874,1756194642863,-1000.0,0.00023287,2]
[381430875,1756194642872,-1000.0,0.00023287,2]
[381430876,1756194642882,-1000.0,0.00023287,2]
[381430877,1756194642892,-693.2307147,0.00023287,2]
[381430878,1756194642903,-150.0,0.00023288,2]
[381430879,1756194642916,-161.32887882,0.00023362,2]
[381430880,1756194642925,-1000.0,0.00023427,2]
[381430881,1756194642935,-2273.33,0.00023443,2]
[381430882,1756194642945,-1120.48565594,0.00023461,10]
[381430883,1756194642955,-34589.844,0.00023462,2]
[381430884,1756194642965,-190643.025,0.00023462,2]
[381430885,1756194642975,-1000.0,0.00023462,2]
[381430886,1756194642987,-500.0,0.00023473,2]
[381430887,1756194642997,-829.127108,0.00023548,2]
[381430888,1756194643007,-500.0,0.00023573,2]
[381430889,1756194643016,-500.0,0.00023573,2]
[381430890,1756194643026,-500.0,0.00023573,2]
[381430892,1756194643036,-565.0,0.00023601,2]
[381430893,1756194643045,-946.01872522,0.00023652,2]
[381430894,1756194643055,-400.6,0.00023726,2]
[381430895,1756194643065,-565.0,0.00023754,2]
[381430896,1756194643076,-600.0,0.00023808,2]
[381430898,1756194643086,-151.0,0.00023836,2]
[381430899,1756194643100,-565.0,0.00023881,2]
[381430900,1756194643110,-565.0,0.00023887,2]
[381430901,1756194643120,-736.17,0.00023933,2]
[381430902,1756194643130,-150.0,0.0002396,2]
[381430904,1756194643140,-1500.0,0.00023975,2]
[381430905,1756194643149,-565.0,0.0002399,2]
[381430906,1756194643159,-308.95,0.00024,2]
[381430907,1756194643170,-160.0,0.00024,7]
[381430909,1756194643179,-300.0,0.00024,10]
[381430910,1756194643188,-565.0,0.00024014,2]
[381430911,1756194643197,-1000.0,0.00024021,2]
[381430912,1756194643205,-500.0,0.00024023,2]
[381430913,1756194643215,-500.0,0.00024023,2]
[381430915,1756194643224,-500.0,0.00024023,2]
[381430916,1756194643234,-161.88879398,0.00024026,2]
[381430917,1756194643243,-500.0,0.00024026,2]
[381430918,1756194643252,-150.0,0.00024031,2]
[381430920,1756194643260,-565.0,0.00024052,2]
[381430921,1756194643269,-500.0,0.00024052,2]
[381430922,1756194643279,-150.0,0.00024102,2]
[381430923,1756194643289,-502.88809515,0.00024121,2]
[381430924,1756194643299,-1000.0,0.00024121,2]
[381430926,1756194643308,-1256.0,0.00024128,2]
[381430927,1756194643316,-3374.0,0.00024128,2]
[381430928,1756194643326,-2031.0,0.00024128,2]
[381430929,1756194643335,-926.0,0.00024128,2]
[381430930,1756194643346,-1658.0,0.00024128,2]
[381430932,1756194643355,-1298.0,0.00024128,2]
[381430933,1756194643364,-566.0,0.00024128,2]
[381430934,1756194643374,-599.0,0.00024128,2]
[381430935,1756194643383,-1173.0,0.00024128,2]
[381430937,1756194643391,-895.0,0.00024128,2]
[381430938,1756194643400,-6146.0,0.00024128,2]
[381430939,1756194643410,-4155.0,0.00024128,2]
[381430940,1756194643419,-718.0,0.00024128,2]
[381430941,1756194643428,-21104.0,0.00024128,2]
[381430943,1756194643436,-150.0,0.00024173,2]
[381430944,1756194643445,-565.0,0.000242,2]
[381430945,1756194643454,-1933.674,0.0002421,6]
[381430946,1756194643463,-155.03,0.0002421,6]
[381430947,1756194643472,-179.7,0.00024224,2]
[381430948,1756194643480,-565.0,0.00024244,2]
[381430950,1756194643489,-1000.0,0.00024246,2]
[381430951,1756194643499,-565.0,0.00024339,2]
[381430952,1756194643508,-600.0,0.00024356,2]
[381430953,1756194643518,-298.47059111,0.00024384,2]
[381430955,1756194643527,-565.0,0.0002441,2]
[381430956,1756194643537,-320.74051982,0.00024437,2]
[381430957,1756194643547,-386.87667747,0.00024437,2]
[381430958,1756194643557,-161.32887874,0.00024482,2]
[381430959,1756194643567,-652.66068269,0.00024523,2]
[381430961,1756194643577,-946.01872522,0.00024527,2]
[381430962,1756194643586,-392.62702972,0.00024568,2]
[381430963,1756194643600,-565.0,0.00024569,2]
[381430964,1756194643609,-1000.0,0.00024571,2]
[381430966,1756194643619,-1000.0,0.00024571,2]
[381430967,1756194643629,-914.2821876,0.00024574,2]
[381430968,1756194643639,-400.6,0.00024616,2]
[381430969,1756194643648,-1000.0,0.00024658,2]
[381430970,1756194643659,-1002.07266514,0.00024668,2]
[381430972,1756194643668,-565.0,0.00024744,2]
[381430973,1756194643678,-500.0,0.00024773,2]
[381430974,1756194643687,-500.0,0.00024773,2]
[381430975,1756194643697,-500.0,0.00024773,2]
[381430976,1756194643707,-500.0,0.00024773,2]
[381430978,1756194643716,-500.0,0.00024773,2]
[381430979,1756194643726,-500.0,0.00024773,2]
[381430980,1756194643736,-563.54231776,0.00024773,2]
[381430981,1756194643747,-500.23610789,0.00024773,2]
[381430983,1756194643756,-500.0,0.00024773,2]
[381430984,1756194643766,-167.26669528,0.00024773,2]
[381430985,1756194643776,-500.0,0.00024773,2]
[381430986,1756194643786,-543.23099148,0.00024799,2]
[381430987,1756194643795,-5000.0,0.00024799,2]
[381430989,1756194643805,-844.63891918,0.000248,3]
[381430990,1756194643815,-212.18043798,0.000248,3]
[381430991,1756194643824,-160.0,0.000248,3]
[381430992,1756194643834,-381.0,0.000248,2]
[381430994,1756194643847,-170210.705805,0.000248,3]
[381430995,1756194643856,-778.0,0.000248,2]
[381430996,1756194643866,-241.0,0.000248,2]
[381430997,1756194643875,-565.0,0.00024876,2]
[381430998,1756194643884,-246.17029613,0.0002488,2]
[381431000,1756194643894,-2273.33,0.00024885,2]
[381431001,1756194643907,-565.0,0.00024887,2]
[381431002,1756194643918,-272337.129288,0.00024889,3]
[381431003,1756194643928,-170210.705805,0.0002489,3]
[381431004,1756194643938,-539278.58073636,0.00024899,2]
[381431006,1756194643948,-2958.34685975,0.00024899,2]
[381431007,1756194643958,-2047.31,0.000249,7]
[381431008,1756194643968,-31092.44631108,0.000249,2]
[381431009,1756194643978,-600.0,0.00024904,2]
[381431011,1756194643988,-30664.10722746,0.00024909,7]
[381431012,1756194643997,-2142.51,0.00024921,4]
[381431013,1756194644007,-565.0,0.00024926,2]
[381431014,1756194644017,-1000.0,0.00024999,2]
[381431015,1756194644026,-150.65,0.00025,2]
[381431017,1756194644036,-300.0,0.00025,2]
[381431018,1756194644045,-300.0,0.00025,2]
[381431019,1756194644055,-300.0,0.00025,2]
[381431020,1756194644065,-344.2,0.00025,2]
[381431021,1756194644076,-1288.0,0.00025,6]
[381431023,1756194644086,-1308.0,0.00025,3]
[381431024,1756194644097,-1157.4,0.00025,7]
[381431025,1756194644108,-162.0,0.00025,7]
[381431026,1756194644118,-844.63891918,0.00025,7]
[381431028,1756194644129,-565.0,0.00025095,2]
[381431029,1756194644139,-565.0,0.00025106,2]
[381431030,1756194644148,-1500.0,0.00025119,2]
[381431031,1756194644158,-1500.0,0.00025119,2]
[381431032,1756194644168,-565.0,0.00025192,2]
[381431034,1756194644177,-1500.0,0.00025202,2]
[381431035,1756194644187,-3000.0,0.00025202,2]
[381431036,1756194644196,-1000.0,0.00025205,2]
[381431037,1756194644207,-565.0,0.00025309,2]
[381431038,1756194644217,-1000.0,0.00025321,2]
[381431040,1756194644227,-1000.0,0.00025321,2]
[381431041,1756194644237,-1000.0,0.00025321,2]
[381431042,1756194644247,-1000.0,0.00025321,2]
[381431043,1756194644256,-1000.0,0.00025321,2]
[381431045,1756194644265,-1000.0,0.00025321,2]
[381431046,1756194644275,-337.94,0.00025342,2]
[381431047,1756194644284,-946.01872522,0.00025401,2]
[381431048,1756194644294,-600.0,0.00025452,2]
[381431049,1756194644304,-400.6,0.00025505,2]
[381431051,1756194644314,-31092.44631105,0.00025597,3]
[381431052,1756194644324,-161.32887874,0.00025602,2]
[381431053,1756194644334,-565.0,0.00025632,2]
[381431054,1756194644346,-565.0,0.00025643,2]
[381431055,1756194644356,-1671.47392746,0.00025667,2]
[381431057,1756194644365,-2047.31,0.000257,7]
[381431058,1756194644375,-565.0,0.00025704,2]
[381431059,1756194644385,-504.0,0.00025767,2]
[381431060,1756194644394,-565.0,0.00025783,2]
[381431062,1756194644404,-332.60791905,0.00025806,2]
[381431063,1756194644414,-401.19111454,0.00025806,2]
[381431064,1756194644424,-775.47832561,0.00025809,2]
[381431065,1756194644433,-565.0,0.00025816,2]
[381431066,1756194644443,-179.05146911,0.00025868,2]
[381431068,1756194644453,-1500.0,0.00025868,2]
[381431069,1756194644465,-1234.48056583,0.00025868,2]
[381431070,1756194644475,-1500.0,0.00025868,2]
[381431071,1756194644485,-1500.0,0.00025868,2]
[381431073,1756194644494,-972.83011308,0.00025868,2]
[381431074,1756194644504,-300.0,0.00026,2]
[381431075,1756194644515,-1838.0,0.00026,5]
[381431076,1756194644525,-1157.4,0.00026,7]
[381431077,1756194644534,-1057.85,0.00026,2]
[381431079,1756194644544,-704.0,0.00026,2]
[381431080,1756194644553,-600.0,0.00026,2]
[381431081,1756194644563,-500.0,0.00026027,2]
[381431082,1756194644572,-500.0,0.00026027,2]
[381431083,1756194644582,-1000.0,0.00026164,2]
[381431085,1756194644595,-902.74202846,0.00026199,2]
[381431086,1756194644605,-946.01872522,0.00026276,2]
[381431087,1756194644614,-31092.44631105,0.00026293,5]
[381431088,1756194644624,-1500.0,0.00026298,2]
[381431090,1756194644634,-3000.0,0.00026298,2]
[381431091,1756194644644,-500.0,0.00026301,2]